lending/lending_fUSD_20241130
["ID","MTS","AMOUNT","RATE_DAILY","PERIOD"]
[343892003,1733004646192,-734.08919847,8e-05,2]
[343892006,1733004646203,-7745.333636,8e-05,2]
[343892008,1733004646216,-3731.9,8e-05,2]
[343892018,1733004646299,-630.95068717,8e-05,2]
[343893232,1733005213577,1049.8,0.0001961,120]
[343893233,1733005242082,1049.79,0.0001961,120]
[343893251,1733005832205,-478.361,7.84e-05,2]
[343893252,1733005832215,-3846.639,7.862e-05,2]
[343893253,1733005832226,-898.11755553,7.862e-05,2]
[343893534,1733005838615,-2746.4288225,7.862e-05,2]
[343893535,1733005838634,-2992.73194305,7.862e-05,2]
[343893536,1733005838646,-270.43267892,7.862e-05,2]
[343893537,1733005838656,-993.3894764,7.995e-05,2]
[343893538,1733005838666,-413.1620827,7.995e-05,2]
[343893539,1733005838677,-465.71060509,7.995e-05,2]
[343893546,1733005838738,-688.09685851,7.995e-05,2]
[343893548,1733005838747,-150.0,7.998e-05,2]
[343893550,1733005838756,-150.0,7.998e-05,2]
[343893552,1733005838766,-150.0,7.998e-05,2]
[343893554,1733005838775,-150.0,7.998e-05,2]
[343893557,1733005838784,-150.0,7.998e-05,2]
[343893560,1733005838793,-150.0,7.998e-05,2]
[343893563,1733005838802,-150.0,7.998e-05,2]
[343893566,1733005838811,-150.0,7.998e-05,2]
[343893568,1733005838820,-150.0,7.998e-05,2]
[343893570,1733005838829,-150.0,7.998e-05,2]
[343893572,1733005838838,-150.0,7.998e-05,2]
[343893575,1733005838848,-150.0,7.998e-05,2]
[343893577,1733005838857,-150.0,7.998e-05,2]
[343893579,1733005838867,-150.0,7.998e-05,2]
[343893581,1733005838876,-150.0,7.998e-05,2]
[343893583,1733005838885,-150.0,7.998e-05,2]
[343893585,1733005838894,-1077.41082227,7.999e-05,2]
[343893587,1733005838904,-690.92,7.999e-05,2]
[343893589,1733005838913,-265.15011993,8e-05,2]
[343894027,1733005843260,-1667.84988007,8e-05,2]
[343894029,1733005843269,-562.0,8e-05,2]
[343894031,1733005843279,-816.0,8e-05,2]
[343894033,1733005843289,-1264.0,8e-05,2]
[343894035,1733005843298,-2754.60561475,8e-05,2]
[343894037,1733005843309,-1003.39438525,8e-05,2]
[343894039,1733005843319,-534.0,8e-05,2]
[343894041,1733005843328,-977.0,8e-05,2]
[343894043,1733005843337,-3525.0,8e-05,2]
[343894045,1733005843347,-1260.0,8e-05,2]
[343894047,1733005843356,-5959.0,8e-05,2]
[343894049,1733005843365,-566.0,8e-05,2]
[343894051,1733005843375,-185.716,8e-05,2]
[343894053,1733005843385,-151.0,8e-05,2]
[343894055,1733005843395,-13700.0,8e-05,2]
[343894058,1733005843404,-1165.0,8e-05,2]
[343894060,1733005843414,-2161.52506584,8e-05,2]
[343894062,1733005843425,-2847.59268996,8e-05,2]
[343894065,1733005843452,-6117.76693714,8e-05,2]
[343894072,1733005843506,-4545.84216166,8e-05,2]
[343894076,1733005843534,-271.64126367,8e-05,2]
[343894079,1733005843555,-13541.19066844,8e-05,2]
[343894086,1733005843614,-14958.94494136,8e-05,2]
[343894088,1733005843625,-899.3672579,8e-05,2]
[343894090,1733005843637,-11141.72203053,8e-05,2]
[343894092,1733005843648,-16021.5,8e-05,2]
[343894365,1733005846214,-2001.0,8e-05,2]
[343894367,1733005846224,-1725.48905069,8e-05,2]
[343894369,1733005846235,-792.73224283,8e-05,2]
[343894372,1733005846247,-750.781243,8e-05,2]
[343894374,1733005846258,-354.37716682,8e-05,2]
[343894376,1733005846269,-1256.00964337,8e-05,2]
[343894378,1733005846280,-711.38074383,8e-05,2]
[343894388,1733005846357,-1862.80000002,8e-05,2]
[343894390,1733005846368,-887.27736715,8e-05,2]
[343894392,1733005846380,-1051.96977662,8e-05,2]
[343894394,1733005846391,-2729.66355406,8e-05,2]
[343894396,1733005846403,-1470.51803953,8e-05,2]
[343894399,1733005846414,-264.06840755,8e-05,2]
[343894405,1733005846468,-3456.27726525,8e-05,2]
[343894407,1733005846479,-327.27513171,8e-05,2]
[343894410,1733005846504,-1507.72094383,8e-05,2]
[343894413,1733005846515,-2061.42575,8e-05,2]
[343895381,1733007032460,-509.023,7.84e-05,2]
[343895382,1733007032470,-522.84,7.922e-05,2]
[343895383,1733007032479,-535.48212679,7.973e-05,2]
[343895384,1733007032488,-199.75968,7.973e-05,2]
[343895385,1733007032497,-388.81088207,7.973e-05,2]
[343895386,1733007032506,-167.8441918,7.973e-05,2]
[343895387,1733007032515,-179.15,7.982e-05,2]
[343895388,1733007032524,-300.0,7.994e-05,2]
[343895389,1733007032534,-213.1094582,7.995e-05,2]
[343895390,1733007032543,-167.1534216,7.995e-05,2]
[343895391,1733007032553,-512.3913881,7.995e-05,2]
[343895392,1733007032563,-401.8966331,7.995e-05,2]
[343895393,1733007032572,-1061.9322711,7.995e-05,2]
[343895394,1733007032581,-662.13,7.999e-05,2]
[343895395,1733007032592,-150.0,7.999e-05,2]
[343895396,1733007032601,-1260.0,8e-05,2]
[343895397,1733007032610,-566.0,8e-05,2]
[343895398,1733007032620,-2001.0,8e-05,2]
[343895399,1733007032629,-630.0,8e-05,2]
[343895400,1733007032639,-150.0,8e-05,2]
[343895401,1733007032649,-1933.0,8e-05,2]
[343895402,1733007032660,-562.0,8e-05,2]
[343895403,1733007032671,-3758.0,8e-05,2]
[343895404,1733007032680,-816.0,8e-05,2]
[343895405,1733007032689,-1264.0,8e-05,2]
[343895406,1733007032698,-3525.0,8e-05,2]
[343895407,1733007032709,-977.0,8e-05,2]
[343895408,1733007032721,-534.0,8e-05,2]
[343895409,1733007032730,-150.0,8e-05,2]
[343895410,1733007032740,-1165.0,8e-05,2]
[343895411,1733007032749,-5959.0,8e-05,2]
[343895413,1733007032758,-7565.29615942,8e-05,2]
[343895419,1733007032799,-6134.70384058,8e-05,2]
[343895421,1733007032808,-264.284,8e-05,2]
[343895423,1733007032819,-250.0,8e-05,2]
[343895425,1733007032832,-148563.4015175,8e-05,2]
[343895467,1733007033267,-33836.44885497,8e-05,2]
[343895879,1733007038746,-1097.0,8e-05,2]
[343895880,1733007038755,-398684.3145358,8e-05,2]
[343895881,1733007038766,-1150.10841379,8e-05,2]
[343895884,1733007038794,-3718.83265683,8e-05,2]
[343895886,1733007038805,-1916.1,8e-05,2]
[343895887,1733007038844,-2464.68861544,8e-05,2]
[343896037,1733007040370,-453.299958,8e-05,2]
[343896044,1733007040427,-2865.0,8e-05,2]
[343896051,1733007040488,-273.32753609,8e-05,2]
[343896053,1733007040499,-596.72890631,8e-05,2]
[343896336,1733007043370,-3156.68488283,8e-05,2]
[343896338,1733007043382,-988301.57786138,8e-05,2]
[343896363,1733007043614,-3338.6427517,8e-05,2]
[343896365,1733007043625,-2980.9306197,8e-05,2]
[343896368,1733007043637,-1117.43563175,8e-05,2]
[343896372,1733007043671,-32090.35529982,8e-05,2]
[343896374,1733007043683,-104395.06400001,8e-05,2]
[343896377,1733007043696,-12874.98835497,8e-05,2]
[343896379,1733007043707,-746.1262946,8e-05,2]
[343896646,1733007046304,-957.3075759,8e-05,2]
[343896652,1733007046357,-510.99173767,8e-05,2]
[343896654,1733007046368,-4472.19025628,8e-05,2]
[343896660,1733007046413,-25782.87412122,8e-05,2]
[343896662,1733007046424,-773.44,8e-05,2]
[343896665,1733007046439,-4802.1777953,8e-05,2]
[343896667,1733007046451,-647.999998,8e-05,2]
[343896670,1733007046472,-454.8884616,8e-05,2]
[343897215,1733007105217,-300.0,7.999e-05,2]
[343897216,1733007105241,-150.0,7.999e-05,2]
[343897217,1733007105263,-150.0,8e-05,2]
[343897218,1733007105285,-150.0,8e-05,2]
[343897219,1733007105310,-77607.0,8e-05,2]
[343897224,1733008231533,-1344.0,7.8e-05,2]
[343897225,1733008231543,-178.04135267,7.827e-05,2]
[343897226,1733008231556,-1.10864733,7.827e-05,2]
[343897227,1733008231567,-336.59237666,7.839e-05,2]
[343897228,1733008231576,-407.218,7.84e-05,2]
[343897229,1733008231586,-151.61663114,7.84e-05,2]
[343897230,1733008231595,-250.0,7.865e-05,2]
[343897231,1733008231604,-173.08,7.92e-05,2]
[343897232,1733008231614,-300.0,7.994e-05,2]
[343897233,1733008231623,-195.7888606,7.995e-05,2]
[343897234,1733008231633,-153.5679281,7.995e-05,2]
[343897235,1733008231642,-197.1150063,7.995e-05,2]
[343897236,1733008231651,-699.44794112,7.995e-05,2]
[343897237,1733008231662,-276.17515478,7.995e-05,2]
[343897238,1733008231672,-642.8637137,7.995e-05,2]
[343897239,1733008231681,-150.0,7.999e-05,2]
[343897240,1733008231691,-634.54,7.999e-05,2]
[343897241,1733008231700,-1260.0,8e-05,2]
[343897242,1733008231709,-566.0,8e-05,2]
[343897243,1733008231718,-128.60499521,8e-05,2]
[343897244,1733008231772,-21.39500479,8e-05,2]
[343897245,1733008231782,-462.35862581,8e-05,2]
[343897246,1733008231796,-1538.64137419,8e-05,2]
[343897247,1733008231805,-630.0,8e-05,2]
[343897248,1733008231815,-562.0,8e-05,2]
[343897249,1733008231824,-1933.0,8e-05,2]
[343897250,1733008231834,-3758.0,8e-05,2]
[343897251,1733008231843,-1264.0,8e-05,2]
[343897252,1733008231853,-816.0,8e-05,2]
[343897253,1733008231863,-534.0,8e-05,2]
[343897254,1733008231873,-977.0,8e-05,2]
[343897255,1733008231882,-3525.0,8e-05,2]
[343897256,1733008231891,-1165.0,8e-05,2]
[343897257,1733008231900,-5827.35862581,8e-05,2]
[343897258,1733008231912,-131.64137419,8e-05,2]
[343897259,1733008231921,-150.0,8e-05,2]
[343897260,1733008231930,-471.12656567,8e-05,2]
[343897263,1733008231961,-13228.87343433,8e-05,2]
[343897265,1733008231971,-22135.88866399,8e-05,2]
[343897420,1733008237567,-833.69583873,7.839e-05,2]
[343897421,1733008237579,-769.96443153,7.839e-05,2]
[343897422,1733008237591,-237.60685973,7.839e-05,2]
[343897423,1733008237601,-54.43835401,8e-05,2]
[343897424,1733008237750,-451.15504761,8e-05,2]
[343897425,1733008237762,-9051.96517079,8e-05,2]
[343897426,1733008237774,-1572.82199258,8e-05,2]
[343897427,1733008237786,-1027.90064709,8e-05,2]
[343897428,1733008237821,-311.184893,8e-05,2]
[343897429,1733008237993,-1060.27976372,8e-05,2]
[343897430,1733008239565,-312.6743259,7.995e-05,2]
[343897431,1733008239575,-274.266,8e-05,2]
[343897432,1733008239585,-1133.45658168,8e-05,2]
[343897433,1733008239597,-3999.64712997,8e-05,2]
[343897434,1733008239641,-346.597816,8e-05,2]
[343897435,1733008239714,-924.04,8e-05,2]
[343897436,1733008239726,-483.96663146,8e-05,2]
[343897437,1733008239737,-3346.1319668,8e-05,2]
[343897438,1733008239748,-2621.39900712,8e-05,2]
[343897439,1733008239912,-482.785,8e-05,2]
[343897440,1733008239923,-371.27,8e-05,2]
[343897445,1733008242562,-8438.71983898,8e-05,2]
[343897446,1733008242618,-1096.28115,8e-05,2]
[343897447,1733008242630,-405.989586,8e-05,2]
[343897448,1733008242642,-699.5899999,8e-05,2]
[343897449,1733008242654,-1192.9975616,8e-05,2]
[343897450,1733008242664,-592.48708101,8e-05,2]
[343897451,1733008242701,-808.91827934,8e-05,2]
[343897452,1733008242736,-59440.0,8e-05,2]
[343897453,1733008242747,-476.51901795,8e-05,2]
[343897454,1733008242760,-372.69,8e-05,2]
[343897455,1733008242810,-42267.38218488,8e-05,2]
[343897456,1733008242821,-250.48040969,8e-05,2]
[343897457,1733008242963,-37380.0,8e-05,2]
[343897458,1733008242975,-3364.28400158,8e-05,2]
[343897460,1733008243033,-8.3255303,8e-05,2]
[343897462,1733008243046,-411.94805953,8e-05,2]
[343897464,1733008243060,-1945.52813414,8e-05,2]
[343897466,1733008243072,-3722.6,8e-05,2]
[343897476,1733008245485,-192613.83961788,8e-05,2]
[343897477,1733008245496,-3381.64283297,8e-05,2]
[343897478,1733008245547,-546.006,8e-05,2]
[343897479,1733008245560,-6188.57226742,8e-05,2]
[343897480,1733008245602,-3858.614216,8e-05,2]
[343897481,1733008245659,-31235.4014925,8e-05,2]
[343897482,1733008245720,-27088.30497311,8e-05,2]
[343897483,1733008245776,-328.89227957,8e-05,2]
[343897484,1733008245787,-1652.3132,8e-05,2]
[343897485,1733008245835,-74737.2121228,8e-05,2]
[343897493,1733008569924,50000.0,0.0001,120]
[343897494,1733008569951,30021.5693861,0.0001,120]
[343897495,1733008570001,270822.68904478,0.0001,120]
[343897496,1733008692807,500.0,7e-05,2]
[343897497,1733008693451,500.0,7e-05,2]
[343897498,1733008694227,500.0,7e-05,2]
[343897499,1733008694964,500.0,7e-05,2]
[343897500,1733008695718,500.0,7e-05,2]
[343897501,1733008696476,500.0,7e-05,2]
[343897502,1733008698320,500.0,7e-05,2]
[343897503,1733008699344,500.0,7e-05,2]
[343897504,1733008699892,500.0,7e-05,2]
[343897505,1733008700632,327.05,7e-05,2]
[343897506,1733008765937,500.0,7e-05,2]
[343897507,1733008874005,901.4,7.292e-05,2]
[343897508,1733008895465,500.0,7e-05,2]
[343897509,1733008896197,500.0,7e-05,2]
[343897510,1733008897337,500.0,7e-05,2]
[343897511,1733008932385,1516.92,7.282e-05,2]
[343897512,1733008995573,250.0,7.282e-05,2]
[343897514,1733009077996,23900.0,7.263e-05,2]
[343897515,1733009267565,152.38882231,7.2e-05,2]
[343897516,1733009272406,646.54,7.284e-05,2]
[343897517,1733009302895,192.24,7.329e-05,2]
[343897518,1733009311571,640.5,7.329e-05,2]
[343897521,1733009317960,3000.0,0.000189,30]
[343897530,1733009431709,-405.247,7.84e-05,2]
[343897531,1733009431718,-226.6072959,7.84e-05,2]
[343897532,1733009431727,-300.0,7.84e-05,2]
[343897533,1733009431737,-4433.61672434,7.84e-05,2]
[343897534,1733009431748,-17285.0,7.841e-05,2]
[343897535,1733009431757,-158.8,7.858e-05,2]
[343897536,1733009431767,-487.9704894,7.9e-05,2]
[343897537,1733009431776,-1133.2312,7.9e-05,2]
[343897538,1733009431786,-217.7888,7.9e-05,2]
[343897539,1733009431795,-310.1224,7.9e-05,2]
[343897540,1733009431805,-150.0,7.959e-05,2]
[343897541,1733009431814,-306.23,7.96e-05,2]
[343897542,1733009431826,-1000.0,7.96e-05,2]
[343897543,1733009431835,-1000.0,7.96e-05,2]
[343897544,1733009431845,-1000.0,7.96e-05,2]
[343897545,1733009431854,-1000.0,7.96e-05,2]
[343897546,1733009431864,-1000.0,7.96e-05,2]
[343897547,1733009431874,-1000.0,7.96e-05,2]
[343897548,1733009431883,-1000.0,7.96e-05,2]
[343897549,1733009431892,-1000.0,7.96e-05,2]
[343897550,1733009431901,-1000.0,7.96e-05,2]
[343897551,1733009431911,-1000.0,7.96e-05,2]
[343897552,1733009431920,-857.4291,7.96e-05,2]
[343897553,1733009431929,-300.0,7.96e-05,2]
[343897554,1733009431938,-429.19,7.96e-05,2]
[343897555,1733009431947,-869.58,7.96e-05,2]
[343897556,1733009431956,-973.17,7.96e-05,2]
[343897557,1733009431965,-150.0,7.96e-05,2]
[343897558,1733009431974,-35139.0,7.973e-05,2]
[343897559,1733009431983,-500.0,7.973e-05,2]
[343897560,1733009431992,-163.61573173,7.973e-05,2]
[343897561,1733009432001,-500.0,7.973e-05,2]
[343897562,1733009432011,-500.0,7.973e-05,2]
[343897563,1733009432020,-500.0,7.973e-05,2]
[343897564,1733009432029,-500.0,7.973e-05,2]
[343897565,1733009432038,-150.0,7.98e-05,2]
[343897566,1733009432047,-1689.0012109,7.995e-05,2]
[343897567,1733009432056,-3808.4089879,7.995e-05,2]
[343897568,1733009432066,-1000.0,7.999e-05,2]
[343897569,1733009432077,-157.47897566,7.999e-05,2]
[343897570,1733009432086,-4119.17698867,7.999e-05,2]
[343897572,1733009432095,-500.0,7.999e-05,2]
[343897574,1733009432104,-150.0,8e-05,2]
[343897576,1733009432114,-2001.0,8e-05,2]
[343897578,1733009432123,-630.0,8e-05,2]
[343897580,1733009432132,-562.0,8e-05,2]
[343897582,1733009432141,-1933.0,8e-05,2]
[343897583,1733009432150,-1264.0,8e-05,2]
[343897585,1733009432159,-3758.0,8e-05,2]
[343897587,1733009432168,-816.0,8e-05,2]
[343897589,1733009432177,-977.0,8e-05,2]
[343897591,1733009432186,-534.0,8e-05,2]
[343897593,1733009432195,-3525.0,8e-05,2]
[343897595,1733009432204,-15619.365,8e-05,2]
[343897598,1733009432214,-150.0,8e-05,2]
[343897601,1733009432223,-1260.0,8e-05,2]
[343897604,1733009432232,-633.0,8e-05,2]
[343897607,1733009432241,-5959.0,8e-05,2]
[343897610,1733009432251,-1165.0,8e-05,2]
[343897613,1733009432260,-4897280.55710815,8e-05,2]
[343897615,1733009432272,-5950.53647029,8e-05,2]
[343897618,1733009432282,-999.1096,8e-05,2]
[343897620,1733009432293,-999.621,8e-05,2]
[343897622,1733009432304,-749.17013049,8e-05,2]
[343897624,1733009432315,-6596.50459152,8e-05,2]
[343897634,1733009432399,-518.89916359,8e-05,2]
[343897708,1733009437718,-4414.93242347,8e-05,2]
[343897709,1733009438014,-730.6000002,8e-05,2]
[343897710,1733009438027,-4013.60651081,8e-05,2]
[343897711,1733009438039,-4540.86106552,8e-05,2]
[343897712,1733009438049,-7690.66135021,8e-05,2]
[343897713,1733009438061,-3108.20282311,8e-05,2]
[343897714,1733009438074,-6775.40602165,8e-05,2]
[343897715,1733009438085,-1937.448,8e-05,2]
[343897716,1733009438096,-1119.17096033,8e-05,2]
[343897717,1733009438107,-1663.19033202,8e-05,2]
[343897718,1733009438118,-2159.28,8e-05,2]
[343897720,1733009438158,-11710.53549523,8e-05,2]
[343897722,1733009438169,-30026.67423133,8e-05,2]
[343897769,1733009439806,-158.095,7.841e-05,2]
[343897770,1733009439816,-3623.806572,8e-05,2]
[343897771,1733009439830,-4751.73684704,8e-05,2]
[343897772,1733009439841,-439.10667098,8e-05,2]
[343897773,1733009439880,-301.4023395,8e-05,2]
[343897774,1733009439958,-530.69259837,8e-05,2]
[343897777,1733009440053,-566.0,8e-05,2]
[343897778,1733009440064,-90.96,8e-05,2]
[343897779,1733009440076,-296.101001,8e-05,2]
[343897806,1733009443054,-9094.54785462,8e-05,2]
[343897807,1733009443090,-10151.71961168,8e-05,2]
[343897808,1733009443101,-2140.38791699,8e-05,2]
[343897809,1733009443112,-3719.1,8e-05,2]
[343897810,1733009443149,-3544.48381288,8e-05,2]
[343897811,1733009443161,-887.58909356,8e-05,2]
[343897948,1733009445769,-7561.86528616,8e-05,2]
[343897949,1733009445781,-2600.53010337,8e-05,2]
[343897950,1733009445810,-4837.2051,8e-05,2]
[343897951,1733009445822,-5773.20004706,8e-05,2]
[343897952,1733009445838,-7454.0,8e-05,2]
[343897953,1733009445849,-5570.45453968,8e-05,2]
[343897954,1733009445886,-379.71008372,8e-05,2]
[343897955,1733009445898,-1104.89183922,8e-05,2]
[343897956,1733009445951,-730.27883011,8e-05,2]
[343897957,1733009445962,-580.542,8e-05,2]
[343897958,1733009445973,-277.736992,8e-05,2]
[343897959,1733009445983,-269.6500025,8e-05,2]
[343897960,1733009446006,-6417.7600647,8e-05,2]
[343897962,1733009743842,14078.48,7.532e-05,2]
[343897964,1733009886804,-226.607296,7.84e-05,2]
[343897965,1733009886827,-2027.2151,7.9e-05,2]
[343897966,1733009886849,-746.177604,7.9e-05,2]
[343897967,1733009934539,-3000.0,7.841e-05,2]
[343897968,1733009995119,-3100.0,7.841e-05,2]
[343897969,1733010209016,-329.0,7.841e-05,2]
[343897970,1733010209038,-1066.0,7.9e-05,2]
[343897971,1733010209060,-1225.723,7.9e-05,2]
[343897972,1733010209081,-189.275,7.9e-05,2]
[343897973,1733010209103,-28111.0,7.9e-05,2]
[343897974,1733010209124,-250.0,7.902e-05,2]
[343897975,1733010209148,-173.08,7.949e-05,2]
[343897976,1733010209169,-345.02864366,7.973e-05,2]
[343897977,1733010209190,-500.0,7.973e-05,2]
[343897978,1733010209212,-501.15683084,7.973e-05,2]
[343897979,1733010209234,-500.0,7.973e-05,2]
[343897980,1733010209257,-500.0,7.973e-05,2]
[343897981,1733010209283,-150.0,7.979e-05,2]
[343897982,1733010209305,-1579.54,7.98e-05,2]
[343897983,1733010209326,-235.71,7.98e-05,2]
[343897984,1733010209349,-150.0,7.98e-05,2]
[343897985,1733010209371,-765.32,7.98e-05,2]
[343897986,1733010209393,-363.81,7.98e-05,2]
[343897987,1733010209415,-434.77,7.98e-05,2]
[343897988,1733010209438,-434.79,7.98e-05,2]
[343897989,1733010209461,-150.0,7.98e-05,2]
[343897990,1733010209483,-150.0,7.98e-05,2]
[343897991,1733010209508,-1554.94,7.98e-05,2]
[343897992,1733010209531,-688.09685877,7.995e-05,2]
[343897993,1733010209553,-459.3663012,7.995e-05,2]
[343897994,1733010209576,-1401.7532985,7.995e-05,2]
[343897995,1733010209599,-150.0,7.998e-05,2]
[343897996,1733010209622,-150.0,7.998e-05,2]
[343897997,1733010209645,-150.0,7.998e-05,2]
[343897998,1733010209668,-150.0,7.998e-05,2]
[343897999,1733010209690,-150.0,7.998e-05,2]
[343898000,1733010209713,-150.0,7.998e-05,2]
[343898001,1733010209736,-150.0,7.998e-05,2]
[343898002,1733010209760,-150.0,7.998e-05,2]
[343898003,1733010209782,-150.0,7.998e-05,2]
[343898004,1733010209804,-150.0,7.998e-05,2]
[343898005,1733010209830,-150.0,7.998e-05,2]
[343898006,1733010209853,-150.0,7.998e-05,2]
[343898007,1733010209875,-150.0,7.998e-05,2]
[343898008,1733010209899,-150.0,7.998e-05,2]
[343898009,1733010209920,-150.0,7.998e-05,2]
[343898010,1733010209943,-150.0,7.998e-05,2]
[343898011,1733010209965,-1077.41082227,7.999e-05,2]
[343898012,1733010209988,-760.39,7.999e-05,2]
[343898013,1733010210011,-630.0,8e-05,2]
[343898014,1733010210032,-150.0,8e-05,2]
[343898015,1733010210053,-1975.958,8e-05,2]
[343898016,1733010210074,-1537.839,8e-05,2]
[343898017,1733010210095,-1264.0,8e-05,2]
[343898018,1733010210119,-816.0,8e-05,2]
[343898019,1733010210140,-3758.0,8e-05,2]
[343898020,1733010210161,-3525.0,8e-05,2]
[343898021,1733010210184,-977.0,8e-05,2]
[343898022,1733010210204,-534.0,8e-05,2]
[343898023,1733010210226,-150.0,8e-05,2]
[343898024,1733010210249,-1106.917,8e-05,2]
[343898025,1733010210271,-13700.0,8e-05,2]
[343898026,1733010210294,-5959.0,8e-05,2]
[343898027,1733010210319,-628812.12524476,8e-05,2]
[343898028,1733010229695,300.0,7e-05,2]
[343898029,1733010231771,600.0,7.1e-05,2]
[343898030,1733010233863,1000.0,7.2e-05,2]
[343898031,1733010235973,1300.0,7.3e-05,2]
[343898032,1733010238099,1700.0,7.4e-05,2]
[343898033,1733010240213,300.0,7.5e-05,2]
[343898034,1733010242310,300.0,7.6e-05,2]
[343898038,1733010467721,23900.0,7.44e-05,2]
[343898039,1733010570598,200.0,7.391e-05,2]
[343898040,1733010609050,13033.42173661,5e-05,14]
[343898053,1733010632007,-289.4999925,7.9e-05,2]
[343898058,1733010632067,-210.5000075,7.9e-05,2]
[343898060,1733010632076,-823.067,7.9e-05,2]
[343898062,1733010632087,-882.51267393,7.9e-05,2]
[343898064,1733010632099,-975.38732607,7.9e-05,2]
[343898066,1733010632108,-162.95,7.91e-05,2]
[343898067,1733010632118,-793.83842749,7.93e-05,2]
[343898068,1733010632129,-4828.75992,7.93e-05,2]
[343898078,1733010632664,-4019.10165251,7.93e-05,2]
[343898079,1733010632673,-329.35,7.936e-05,3]
[343898080,1733010632683,-188.55356234,7.96e-05,2]
[343898081,1733010632692,-150.0,7.973e-05,2]
[343898082,1733010632702,-500.0,7.973e-05,2]
[343898083,1733010632711,-500.0,7.973e-05,2]
[343898084,1733010632720,-615.4061952,7.995e-05,2]
[343898085,1733010632729,-1342.6957749,7.995e-05,2]
[343898086,1733010632741,-577.54888112,7.999e-05,2]
[343898087,1733010632751,-150.0,7.999e-05,2]
[343898088,1733010632760,-561.394,8e-05,2]
[343898089,1733010632771,-630.0,8e-05,2]
[343898090,1733010632781,-265.15,8e-05,2]
[343898091,1733010632790,-816.0,8e-05,2]
[343898092,1733010632799,-3758.0,8e-05,2]
[343898093,1733010632808,-1264.0,8e-05,2]
[343898094,1733010632817,-3057.589,8e-05,2]
[343898095,1733010632826,-977.0,8e-05,2]
[343898096,1733010632838,-534.0,8e-05,2]
[343898097,1733010632847,-5167.35,8e-05,2]
[343898098,1733010632856,-2085.667,8e-05,2]
[343898099,1733010632866,-150.0,8e-05,2]
[343898100,1733010632875,-150.0,8e-05,2]
[343898101,1733010632883,-49211.32759013,8e-05,2]
[343898108,1733010637875,-325.83998371,8e-05,2]
[343898113,1733010638100,-5413.3583,8e-05,2]
[343898114,1733010638112,-20556.29510056,8e-05,2]
[343898187,1733010640003,-958.91,8e-05,2]
[343898188,1733010640015,-1115.01,8e-05,2]
[343898200,1733010642843,-150.0,8e-05,2]
[343898201,1733010642851,-1350.04768187,8e-05,2]
[343898202,1733010642863,-495.58079881,8e-05,2]
[343898203,1733010642875,-1319.07941141,8e-05,2]
[343898204,1733010642906,-1916.88,8e-05,2]
[343898205,1733010642917,-5989.5767155,8e-05,2]
[343898206,1733010642960,-1950.0,8e-05,2]
[343898207,1733010643019,-15975.56749385,8e-05,2]
[343898208,1733010643079,-537.35,8e-05,2]
[343898209,1733010643266,-823.32077278,8e-05,2]
[343898210,1733010643277,-3547.76912753,8e-05,2]
[343898211,1733010643288,-7258.95014615,8e-05,2]
[343898294,1733010645841,-1945.286633,8e-05,2]
[343898295,1733010645852,-318.21,8e-05,2]
[343898296,1733010646030,-1096.53,8e-05,2]
[343898297,1733010646041,-2160.00024,8e-05,2]
[343898319,1733010899100,250.0,7.313e-05,2]
[343898321,1733011088515,895.78,7.327e-05,2]
[343898322,1733011106826,231.75,7.303e-05,2]
[343898323,1733011187960,405.1,7.334e-05,2]